Cogmind - Beta 17 @@@ ROGUE MODE // 2026.08.13 @ 19:21:18 Player: Quad Result: Destroyed by G-47 Trooper with Particle Gun Performance ------------- Evolutions (2) 1000 Regions Visited (3) 600 Robots Destroyed (45) 225 Value Destroyed (1217) 1217 Prototype IDs (2) 40 Alien Tech Used (0) 0 Bonus (0) 0 TOTAL SCORE: 3082 Bonus ------- None Cogmind --------- Core Integrity 0/550 Matter 94/300 Energy 245/250 System Corruption 0% Temperature Warm (150) Movement Core (150) Ox2 Location -8/Materials Parts ------- > --- POWER (1) -------- Ion Engine > --- PROPULSION (3) --- (None) > --- UTILITY (4) ------ (None) > --- WEAPON (3) ------- Advanced Beam Rifle > --- INVENTORY (5) ---- Ion Engine Aluminum Leg Terrain Scan Processor Peak State ------------ > --- POWER ------------ Ion Engine > --- PROPULSION ------- Aluminum Leg Aluminum Leg Aerolev Unit > --- UTILITY ---------- Medium Storage Unit Seismic Detector > --- WEAPON ----------- Grenade Launcher Mini Grenade Launcher > --- INVENTORY -------- Ion Engine Ion Engine Aluminum Leg Aluminum Leg Aluminum Leg Aluminum Leg Terrain Scan Processor Medium Laser Particle Cannon Shotgun [Rating: 13] Favorites ----------- Power Ion Engine Engine Ion Engine Propulsion Aluminum Leg Leg Aluminum Leg Hover Unit Aerolev Unit Utility Medium Storage Unit Device Seismic Detector Storage Medium Storage Unit Weapon Grenade Launcher Energy Gun Medium Laser Energy Cannon Particle Cannon Ballistic Gun Assault Rifle Launcher Grenade Launcher Build | -11 -10 -9 -8 ------- Run | Yrd Mat Mat Mat Slots Evolved 4 | . . 2 2 Power . | . . . . Propulsion 1 | . . 1 . Utility 2 | . . 1 1 Weapon 1 | . . . 1 Parts Attached 29 | 6 10 7 6 Power 4 | 1 2 1 . Engine 4 | 1 2 1 . Core . | . . . . Reactor . | . . . . Propulsion 12 | 2 3 3 4 Treads . | . . . . Leg 11 | 2 3 3 3 Wheel . | . . . . Hover 1 | . . . 1 Flight . | . . . . Utility 5 | 1 3 1 . Device 2 | . 1 1 . Storage 3 | 1 2 . . Processor . | . . . . Hackware . | . . . . Protection . | . . . . Artifact . | . . . . Weapon 8 | 2 2 2 2 Energy Gun 2 | . 1 . 1 Energy Cannon 1 | . . . 1 Ballistic Gun 3 | 2 . 1 . Ballistic Cannon . | . . . . Launcher 2 | . 1 1 . Special Weapon . | . . . . Impact Weapon . | . . . . Slashing Weapon . | . . . . Piercing Weapon . | . . . . Special Melee Weapon . | . . . . Unidentified Prototypes 2 | . . . 2 Parts Lost 18 | . 4 . 14 Power 1 | . . . 1 Propulsion 7 | . 1 . 6 Utility 3 | . 1 . 2 Weapon 7 | . 2 . 5 Highest Loss Streak 8 | . 3 . 8 To Critical Strikes . | . . . . Average Backups 6 | . 6 6 7 Power 1 | . 1 2 1 Propulsion 2 | . 2 2 2 Utility . | . . 1 1 Weapon 1 | . 1 1 1 Tool/Special . | . . . . Unused Backups 2 | . 1 . 1 Power 1 | . 1 . . Propulsion . | . . . . Utility 1 | . . . 1 Weapon . | . . . . Tool/Special . | . . . . Average Slot Usage (%) 76 | . 86 79 40 Engine 11 | . 14 11 5 Leg 25 | . 27 31 13 Device 4 | . 3 4 3 Storage 11 | . 14 11 6 Energy Gun 3 | . 4 4 2 Ballistic Gun 10 | . 16 4 . Launcher 7 | . 5 11 5 Peak Build Rating 13 | 6 7 10 13 Average Rating 6 | 4 6 8 5 On Entrance 5 | . 6 6 10 Avg Prop Armor Cover (%) . | . . . . Naked Turns . | . . . . Heaviest Build 22 | 13 20 22 20 Greatest Support 30 | 20 20 30 30 Greatest Overweight (x) 4 | 2 1 . 4 Average Overweight (x) . | . . . . Largest Inventory Capacity 20 | 8 20 10 10 Average Capacity 9 | 7 9 10 8 Most Carried 10 | 2 9 9 10 Average Carried 6 | . 6 6 6 Final Capacity 10 | 8 10 10 5 Final Carried 9 | 2 6 9 3 Class Distribution -------------------- 100% | Mutant Dominant Class ---------------- Mutant | -10/Materials Mutant | -9/Materials Mutant | -8/Materials Resources | -11 -10 -9 -8 ----------- Run | Yrd Mat Mat Mat Matter Collected 1084 | 198 515 264 107 Remotely . | . . . . Salvage Created 1128 | . 479 243 406 Parts 67 | . 38 12 17 Haulers Intercepted 2 | . 2 . . Recyclers Shooed 2 | . 2 . . Parts Field Recycled . | . . . . Retrieved Matter . | . . . . Parts Self-Destructed . | . . . . Prevented . | . . . . Parts Restored . | . . . . Kills | -11 -10 -9 -8 ------- Run | Yrd Mat Mat Mat Combat Hostiles Destroyed 30 | . 9 12 9 Guns 12 | . 8 1 3 Cannons 2 | . . . 2 AOE 16 | . 1 11 4 Classes Destroyed 12 | . 8 2 2 Worker 2 | . 1 1 . Builder 1 | . 1 . . Hauler 2 | . 2 . . Recycler 3 | . 2 . 1 Mechanic 1 | . . 1 . Operator 2 | . 1 . 1 Watcher 4 | . 3 1 . Swarmer 8 | . 3 4 1 Grunt 17 | . 6 6 5 Duelist 1 | . . . 1 Sentry 3 | . . 2 1 Hunter 1 | . . . 1 Best Kill Streak 8 | . 6 8 6 Combat Bots Only 7 | . 5 7 4 Max Kills in Single Turn 3 | . 2 3 2 Gunslinging . | . . . . Exploded 3 | . 1 3 1 Melee . | . . . . Uniques/NPCs Destroyed . | . . . . Combat | -11 -10 -9 -8 -------- Run | Yrd Mat Mat Mat Hostile Shots Fired 251 | . 70 28 153 Missed 61 | . 15 11 35 Hits 190 | . 55 17 118 Melee 2 | . . . 2 Projectile 188 | . 55 17 116 Critical Strikes 3 | . . 1 2 Damage Taken 2678 | . 889 239 1550 Core 695 | . 109 22 564 Absorbed by Shields . | . . . . Regen/Repaired (Parts) 35 | . 18 17 . Core Remaining (%) 83 | 100 56 94 . Volleys Fired 116 | . 56 21 39 Largest 2 | . 2 2 2 Hottest 118 | . 80 80 118 Shots Fired 184 | . 103 33 48 Gun 120 | . 87 11 22 Cannon 6 | . . . 6 Launcher 58 | . 16 22 20 Special . | . . . . Kinetic 82 | . 72 9 1 Thermal 44 | . 15 2 27 Explosive 58 | . 16 22 20 Electromagnetic . | . . . . Robot Hit Streak 10 | . 9 10 9 Robot Miss Streak 6 | . 6 2 4 Penetration Max . | . . . . Secondary Targets 1 | . 1 . . Max Gunslinging Chain 1 | . 1 . . Shots Hit Robots 102 | . 54 22 26 Core Hits 83 | . 35 25 23 Critical Kills . | . . . . Critical Parts Destroyed 1 | . . 1 . Critical Strikes 2 | . . 1 1 Burn 1 | . . . 1 Destroy 1 | . . 1 . Melee Attacks . | . . . . Impact . | . . . . Slashing . | . . . . Piercing . | . . . . Sneak Attacks . | . . . . Combat Hostiles . | . . . . Follow-up Attacks . | . . . . Damage Inflicted 3234 | . 1296 1015 923 Guns 986 | . 565 149 272 Cannons 102 | . . . 102 Explosions 2146 | . 731 866 549 Melee . | . . . . Ramming . | . . . . Kinetic 626 | . 490 136 . Thermal 751 | . 364 13 374 Explosive 1857 | . 442 866 549 Electromagnetic . | . . . . Impact . | . . . . Slashing . | . . . . Piercing . | . . . . Highest Corruption 2 | . 2 1 . Average Corruption 1 | . 2 1 . Corruption Purged . | . . . . Corruption Blocked . | . . . . Effects 3 | . 3 . . Message Errors 1 | . 1 . . Matter Fused 2 | . 2 . . Overload Shots . | . . . . Overflow Damage 180 | . 136 18 26 Projectiles . | . . . . Explosions 180 | . 136 18 26 Melee . | . . . . Knockbacks . | . . . . Impact . | . . . . Kinetic . | . . . . Secondary . | . . . . Self-Inflicted Damage 359 | . 247 34 78 Shots 11 | . 5 3 3 Rammed 1 | . . . 1 Targets Rammed 1 | . . . 1 Kicked . | . . . . Crushed . | . . . . Highest Temperature 141 | . 64 13 141 Average Temperature 32 | . 19 5 57 Received Heat Transfer 888 | . 318 93 477 Siege Activations . | . . . . Martial Activations . | . . . . Shielding Activations . | . . . . Robots Disrupted . | . . . . Combat Hostiles . | . . . . Robots Corrupted . | . . . . Combat Hostiles . | . . . . Parts Fried . | . . . . Impact Corruptions . | . . . . Robots Melted . | . . . . Combat Hostiles . | . . . . Parts Melted 4 | . 1 . 3 Heat Transferred 1397 | . 472 37 888 Parts Sabotaged . | . . . . Parts Stolen . | . . . . Parts Stripped . | . . . . Power Chain Reactions . | . . . . Alert | -11 -10 -9 -8 ------- Run | Yrd Mat Mat Mat Maximum Alert Level 1 | . . 1 1 Low Security (%) 75 | 100 100 49 30 Level 1 25 | . . 50 69 Level 2 . | . . . . Level 3 . | . . . . Level 4 . | . . . . Level 5 . | . . . . High Security . | . . . . Max Security . | . . . . Peak Influence 354 | . 166 354 288 Initial 134 | . . 59 134 Average 111 | . 56 178 209 Influence Increases 1276 | . 481 450 345 Destroy 0b10 Robot/C 600 | . 180 240 180 Destroy 0b10 Robot/NC 75 | . 50 15 10 Destroy Leader 142 | . 40 52 50 Successful Hack 34 | . 13 15 6 Disable Machine 120 | . 75 30 15 Destroy Structure 290 | . 123 98 69 Lose Combat Pursuer 15 | . . . 15 Influence Decreases 1057 | . 339 273 445 Entered New Map 268 | . . 83 185 Time Decay 609 | . 299 190 120 Lost Part 180 | . 40 . 140 Squads Dispatched 4 | . 1 1 2 Investigation 3 | . . 1 2 Extermination . | . . . . Reinforcement 1 | . 1 . . Assault . | . . . . Garrison . | . . . . Intercept . | . . . . Searches Triggered . | . . . . Construction Impeded . | . . . . Haulers Reinforced . | . . . . Active Scanning Responses . | . . . . Cargo Convoy Interrupts . | . . . . Stealth | -11 -10 -9 -8 --------- Run | Yrd Mat Mat Mat Distress Signals 2 | . 1 . 1 Communications Jammed . | . . . . Distress Signals . | . . . . Times Spotted 46 | . 18 13 15 Peak Tracking Total 9 | . 6 3 9 Tactical Retreats 1 | . . . 1 Traps | -11 -10 -9 -8 ------- Run | Yrd Mat Mat Mat Traps Triggered 2 | . 1 1 . Indirectly . | . . . . Trap Hack Attempts . | . . . . Triggered . | . . . . Disarmed . | . . . . Reprogrammed . | . . . . Reused . | . . . . Traps Extracted . | . . . . Installed . | . . . . Triggered . | . . . . Machines | -11 -10 -9 -8 ---------- Run | Yrd Mat Mat Mat Machines Disabled 8 | . 5 2 1 Max in Single Turn 2 | . 2 1 1 Machines Repaired . | . . . . Machines Dismantled . | . . . . Machines Sabotaged . | . . . . Overloaded Fab Kills . | . . . . Hacking | -11 -10 -9 -8 --------- Run | Yrd Mat Mat Mat Machines Accessed 13 | . 6 5 2 Terminals 7 | . 3 2 2 Fabricators . | . . . . Repair Stations 2 | . 1 1 . Recycling Units 3 | . 2 1 . Scanalyzers 1 | . . 1 . Garrison Access . | . . . . Total Hacks 31 | . 12 14 5 Successful 18 | . 8 7 3 Failed 13 | . 4 7 2 Catastrophic 2 | . 1 1 . Database Lockouts . | . . . . Manual 9 | . 4 1 4 Terminals 16 | . 6 5 5 Fabricators . | . . . . Repair Stations 6 | . 2 4 . Recycling Units 7 | . 4 3 . Scanalyzers 2 | . . 2 . Garrison Access . | . . . . Terminal Hacks 8 | . 2 3 3 Record 7 | . 1 3 3 Branch Access Points 1 | . 1 . . Fabricator Hacks . | . . . . Repair Station Hacks 4 | . 2 2 . Scan Component 2 | . 1 1 . Repair 2 | . 1 1 . Recycling Unit Hacks 5 | . 4 1 . Report Inventory 4 | . 3 1 . Retrieve Components 1 | . 1 . . Scanalyzer 1 | . . 1 . Retrieve Study 1 | . . 1 . Garrison Access Hacks . | . . . . Unauthorized Hacks . | . . . . Terminals . | . . . . Fabricators . | . . . . Repair Stations . | . . . . Recycling Units . | . . . . Scanalyzers . | . . . . Garrison Access . | . . . . Data Cores Recovered . | . . . . Used . | . . . . Hacking Detections 12 | . 5 5 2 Full Trace Events 5 | . 2 1 2 Feedback Events . | . . . . Feedback Blocked . | . . . . Robot Schematics Acquired . | . . . . Robots Built . | . . . . Authchips . | . . . . Time . | . . . . Total Robot Build Rating . | . . . . Part Schematics Acquired . | . . . . Parts Built . | . . . . Authchips . | . . . . Time . | . . . . Total Part Build Rating . | . . . . Part Studies Acquired 1 | . . 1 . Parts Repaired 2 | . 1 1 . Time 52 | . 26 26 . Parts Recycled . | . . . . Recycled Matter . | . . . . Retrieved Matter . | . . . . Retrieved Components 3 | . 3 . . Parts Scanalyzed . | . . . . Part Schematics Acquired . | . . . . Parts Damaged . | . . . . Bothacking | -11 -10 -9 -8 ------------ Run | Yrd Mat Mat Mat Used RIF Installer . | . . . . Robots Hacked . | . . . . Non-combat . | . . . . Combat . | . . . . Robot Hacks Applied . | . . . . Relay Couplers Released . | . . . . Fabnet Peak Effective % . | . . . . Robots Rewired . | . . . . Allies Hacked . | . . . . Hacks Repelled . | . . . . Allies | -11 -10 -9 -8 -------- Run | Yrd Mat Mat Mat Total Allies . | . . . . Largest Group . | . . . . Highest-Rated Group . | . . . . Highest-Rated Ally . | . . . . Total Orders . | . . . . Ally Attacks . | . . . . Total Damage . | . . . . Kills . | . . . . Allies Corrupted . | . . . . Allies Melted . | . . . . Intel | -11 -10 -9 -8 ------- Run | Yrd Mat Mat Mat Active Infowar (turns) 481 | . 211 171 99 Terrain 211 | . 211 . . Seismic 270 | . . 171 99 Robot Analysis Total . | . . . . Derelict Logs Recovered . | . . . . Drone Launches . | . . . . Drone Recoveries . | . . . . Exploration | -11 -10 -9 -8 ------------- Run | Yrd Mat Mat Mat Turns Passed 1476 | 62 780 381 253 Spaces Moved 810 | 46 414 240 110 Core 37 | 14 . . 23 Treads . | . . . . Legs 773 | 32 414 240 87 Wheels . | . . . . Hover . | . . . . Flight . | . . . . Fastest Speed 50 | 50 120 105 50 Average Speed 118 | 112 123 106 133 Slowest Speed 250 | 150 190 120 250 Overloaded Moves . | . . . . Propulsion Burnouts . | . . . . Robots Hopped . | . . . . Potential Cave-ins 7 | . . . 7 Cave-ins Triggered . | . . . . Exploration Rate (%) 27 | 3 66 27 15 Regions Visited 3 Branch Regions . Pre-discovered Areas . | . . . . Known Exits Taken . | . . . . Unknown Exits Taken 3 | 1 1 1 . Scrap Searched . | . . . . Spaces Dug . | . . . . Terrain Destroyed 370 | . 127 116 127 Melee . | . . . . Projectile . | . . . . AOE 370 | . 127 116 127 Terrain Rammed . | . . . . Walls Destroyed . | . . . . Machines Disabled . | . . . . Actions | -11 -10 -9 -8 --------- Run | Yrd Mat Mat Mat Total 1134 | 53 584 331 166 Wait 146 | . 88 54 4 Move 807 | 45 413 239 110 Hop . | . . . . Pick Up 14 | 2 8 4 . Fast Attach 18 | 6 4 4 4 Attach 10 | . 3 1 6 Detach 3 | . . 2 1 Swap 12 | . 8 4 . Drop 7 | . 4 2 1 Fire 116 | . 56 21 39 Melee . | . . . . Ram 1 | . . . 1 Kick . | . . . . Crush . | . . . . Escape Stasis . | . . . . Rewire . | . . . . Trap . | . . . . Miscellaneous . | . . . . Route ------- -11/Scrapyard -10/Materials (discovered 3 exits: *Mat / *Min x2) -9/Materials -8/Materials History --------- Turn | Location | Event 12 | -11/Scrapyard | Discovered new exit (range 16) 63 | -11/Scrapyard | Entered Materials 195 | -10/Materials | Repaired Aluminum Leg 301 | -10/Materials | Build established: Mutant 450 | -10/Materials | Discovered new exit (range 11) 493 | -10/Materials | Identified exit to Mines 640 | -10/Materials | Lost 3 parts (1n2w) 663 | -10/Materials | Discovered new exit (range 14) 843 | -10/Materials | Entered another Materials area 843 | -9/Materials | Evolved 2 slots: Propulsion x1, Utility x1 944 | -9/Materials | Repaired Grenade Launcher 1053 | -9/Materials | Destroyed 7 combat bots 1211 | -9/Materials | Discovered new exit (range 3) 1224 | -9/Materials | Entered another Materials area 1224 | -8/Materials | Evolved 2 slots: Utility x1, Weapon x1 1338 | -8/Materials | Core integrity fell below 50% 1371 | -8/Materials | Lost 8 parts (1p3n1u3w) 1393 | -8/Materials | Core integrity fell below 20% 1477 | -8/Materials | Destroyed by G-47 Trooper with Particle Gun Last Messages --------------- 01395_ Med. Storage Unit destroyed. 01398_ Heat Sink melted. 01398_ Lgt. Treads melted. 01398_ Y-45 Defender destroyed. 01401_ Particle Cannon destroyed. 01402_ Acquired 52 matter. 01409_ G-47 Trooper suffers critical hit (Burn). 01412_ G-47 Trooper heat spikes uncontrollably. 01413_ G-47 Trooper overheating. 01413_ Particle Gun melted. 01413_ G-47 Trooper destroyed. 01417_ Acquired Aluminum Leg+. 01418_ Acquired 55 matter. 01421_ Acquired Aluminum Leg+. 01444_ Med. Laser destroyed. 01460_ Acquired Prototype Energy Gun. 01460_ Identified Adv. Beam Rifle. 01466_ L-31 Rogue destroyed. 01469_ Aluminum Leg+ destroyed. 01476_ G-47 Trooper destroyed. Map ----- +----------------------------------------------------+ | ??????????????????? ?# [% | | ???????????????????###??######### =# "" | | ????????????????????????????????## # ### "" | | ?????????????????????????????????# ####?# "" | | ????????????????????????????????############### | | ????????????????????????????????# # "" | | ????????????????????????????????+ # "" | | ????????????????????????????????# """ + "" | | ????????????????????????????????# """"" ! # | | ????????????????????????????????# """"" %##### | | ????????????????????????????????# """"" *# | | ????????????????????????????????# """ # | | ????????????????????????# ####### # """ | | ???????????????????????## # """ | | ???????????????????? *# """ | | ???????????????????? "= | | ???????????????????????########### #=""" | | ????????????????????????########### ###### # """ | | ????????????????????????# ! # #????# # """ | | ????????????????????????# + #????#### | | ????????????????????????# # #???????# | | ????????????????????????# """ """ # #???????##### | | ????????????????????????# """ """ # #???????????? | | ????????????????????????# """ """ # #???????????? | | ????????????????????????# =g # +???????????? | | ????????????????????????#@% !%* + #???????????? | | ????????????????????????########### #???????????? | | ??????????????????????????????????#+##???????????? | | ?????????????????????????????????????????????????? | | ?????????????????????????????????????????????????? | | ?????????????????????????????????????????????????? | | ?????????????????????????????????????????????????? | | ?????????????????????????????????????????????????? | | ?????????????????????????????????????????????????? | | | | | | | | | | | | | | | | | | | | | | | | | | | | | | | | | +----------------------------------------------------+ Best States ------------- Heat Dissipation 31 Energy Generation 10 Energy Capacity 250 Matter Stores 300 Matter Capacity 300 Sight Range 16 Terrain Scan Range 14 Terrain Scan Density 10 Evasion (%) 55 Item Schematics ----------------- None Robot Schematics ------------------ None Fabricated ------------ Nothing Repaired ---------- Aluminum Leg | 80% | -10/Materials Grenade Launcher | 71% | -9/Materials Studied --------- Aluminum Leg | -9/Materials | Hacked Alien Tech Used ----------------- None Achievements -------------- None Challenges ------------ None Game ------ Seed ScatterLargeScanner Manual? 0 Play Time 00:22:41 Cumulative 10.7 hours Start 2026.08.13 @ 18:59:27 End 2026.08.13 @ 19:21:18 Sessions 1 Manual Loads 0 Difficulty Rogue Special Mode None Game No. 16 Rogue 14 Adventurer 2 Explorer 0 Win Type - Total 0 Types 0/0/0/0/0/0/0/0/0/0 Lore% 8 Gallery% 14 Achievement% 15 Wizard Run 0 Options --------- Layout 0 ASCII 0 Keyboard 0 Movement Mouse Keybinds 0 Fullscreen 1 Font 18/SmallcapsGlow Map View 76x50 Zoom Use 0% Tactical HUD 1 Map Filters NONE Filters NONE Steam X RUN: 89e05f3c-1e8e-436d-9c90-b5247373f230